Workbook

Sheet Cover Page
A1: PROVINCIAL ADMINISTRATION OF KWAZULU-NATAL
A2: DEPARTMENT OF PUBLIC WORKS
F5: Please do a print preview before printing
A14: BILLS OF QUANTITIES
A15: with GCC for Construction Works - Second Edition 2010
A17: CONTRACTUAL SECTION
A18: ONE VOLUME APPROACH
A20: PHASE 14: STORM DAMAGED PROGRAMME: REPAIRS AND RENOVATIONS TO STORM DAMAGED SCHOOLS THROUGHOUT THE PROVINCE OF KWAZULU-NATAL:SOUTHERN REGION: CLUSTER 164: MUZIKAWUTHANDWA HIGH SCHOOL. OPEN BIDS
A22: Engineer/Principal Agent
A23: Ravi Jhupsee Architects cc t/a Architronic
A24: P.O. Box 19393
A25: Dormerton
A26: Durban
A27: 4091
A28: 0312013933 - Tel Number
A29: 0312013930 - Fax Number
A30: marvinm@architronic.co.za
A33: Employer: | C33: Region:
A34: Head: Public Works | C34: Head Public Works: Operations
A35: KZN Department of Public Works | C35: KZN Department of Public Works
A36: Private Bag X 9041 | C36: X9041
A37: PIETERMARITZBURG | C37: Pietermaritzburg
A38: 3200 | C38: 3200
A39: Tel Number: 033 - 3555569 | C39: Tel Number: | D39: 033 - 3555569
A40: Fax Number: N/A | C40: Fax Number: | D40: N/A
A42: Tender Number: ZNTM01224W | C42: Project Code: | D42: 063261
A43: CIDB Grading: 5GB OR HIGHER | C43: Document Date: | D43: 20 October 2023
A44: ECDP Number: N/A
A46: Contracting Party: __________________________________________________________________________
A47: CIDB Registration number: | C47: ______________________________________
A48: Central Suppliers Database Registration Number: | C48: ______________________________________

Sheet Section 1 - Preliminaries
A1: ITEM NO | B1: DESCRIPTION | C1: UNIT | D1: QUANTITY | E1: RATE | F1: AMOUNT
B3: SECTION NO. 1
B6: BILL NO. 1
B8: Preliminaries
A11: 1 | B11: Preliminaries | C11: Item | D11: 1 | F11: =D11*E11 -> 0
A14: Bill No. 1 | B14: Carried to Summary | F14: =SUM(F9:F13) -> 0

Sheet Section 2 - Builders Work
A1: ITEM NO | B1: DESCRIPTION | C1: UNIT | D1: QUANTITY | E1: RATE | F1: AMOUNT
B3: SECTION NO. 2
B5: BILL NO. 1
B7: ALTERATIONS (PROVISIONAL)
B9: (CPAP WORK GROUP NO. 102 UNLESS OTHERWISE STATED)
B11: Key: Location Description A Block A (6 classroom) B Block B (6 classroom) C Block C (Hall) D Block D (Staff accommodation) E Block E (Girls ablution) F Block F (Boys ablution) G Block G (Ablution) H Block H (Ablution) I General J Ablution to be demolished K External works
B13: Tenderers are referred to the Model Preambles for All Trades as published by the Association of South African Quantity Surveyors (Tel. 011-315 4140) and the Architectural, Structural and Electrical Works Information before pricing this Bill of Quantities
C15: UL
B17: SUPPLEMENTARY PREAMBLES
B19: View site:
B21: Before submitting his tender the contractor shall visit the site and satisfy himself as to the nature and extent of the work to be done and the value of the materials contained in the buildings or portions of the buildings to be demolished. No claim for any variations of the contract sum in respect of the nature and extent of the work or of inferior or damaged materials will be entertained
B23: Damage to existing finishes:
B25: The Contractor will be held responsible for all damage, however caused, to existing finishes and fittings etc. and he must make good all damage at his own expense to the approval of the Principal Agent
B27: Breaking down, demolition and alteration activities and tasks, hacking off of existing plaster, etc. is to be executed with care so as to prevent damage to remaining floor and wall surfaces and finishes (where these are to be retained). Tenders will be deemed to include allowance for any necessary protection of existing surfaces and structures as may be necessary to effect the above, as the cost of repairing damage to existing surfaces and structures will be solely for the Contractors account
B29: Responsibility for site:
B31: The contractor is to note that upon possession of the site by himself, and extending until practical completion is achieved, he is solely responsible for the site, site security, general upkeep and cleaning of the site and all other responsibilities in maintaining a construction site in conformance with but not limited to, the Construction Regulations 2003, all local by-laws, all user client regulations, and all Client regulations and procedures. Tenderers are therefore urged to study all available material and to investigate fully the site and areas contiguous to the site, in order to determine the range and extent of responsibility. No additional monetary and/or time claims will be entertained in respect of the above
B33: Explosives :
B35: No explosives whatsoever may be used for demolition purposes unless otherwise stated
B37: General:
B39: The contract shall carry out the whole of the works with as little mess and noise as possible and with a minimum of disturbance to adjoining classroom blocks and their students. He shall provide proper protection and provide, erect and remove when directed, any temporary tapaulins that may be necessary during the progress of the works, or to the satisfaction of the principal agent
B41: Water supply pipes and other piping that may be encountered and found necessary to disconnect or cut, shall be effectually stopped off or grubbed up and removed, and any new connections that may be necessary shall be made with proper fittings, to the satisfaction of the principal agent
B43: Prices for taking out of doors, windows, etc. shall include for removal of all beads, architraves, ironmongery, etc
B45: Prices for taking out and removing doors and frames shall include for removing door stops, cabin hooks, etc. and making good floor and wall finishes to match existing
B47: With regard to building up of openings in existing walls, cement screeds and pavings, granolithic, tops of walls, etc., shall be levelled and prepared for raising of brickwork
B49: Making good of finishes shall include making good of the brick and concrete surfaces onto which the new finishes are applied, where necessary
B51: The contractor will be required to take all dimensions affecting the existing buildings on the site and he will be held solely responsible for the accuracy of all such dimensions where used in the manufacture of new items (doors, windows, fittings, etc.)
B53: Removal of materials:
B55: Where removal is included in the heading, sub-heading or item description, prices shall be deemed to include for the necessary costs in removal and appropriate disposal of materials including but not limited to labour, transportation and disposal costs. No further claims in this regard will be entertained
B57: Removal of asbestos material:
B59: All preparatory work, alterations, etc., to existing asbestos cement roof sheeting, gutters, rainwater pipes, etc., is to be carried out strictly by an approved and certified specialist company and in accordance with statutory requirements (Occupational Health and Safety Act, 1993 - Asbestos Regulations 2001) and all necessary precautions must be taken when working with and disposing of asbestos cement products and the disposing of waste water resulting from cleaning operations, etc
B61: The following shall apply in respect of asbestos removal:
B63: The removal of asbestos shall be carried out by a certified entity, registered in accordance with the Occupational Health and Safety Act 1993 and the Asbestos Regulation 2001. Asbestos in all forms/building elements that is to be removed, shall be carried out in strict accordance with aforementioned regulation, and a certificate issued by the entity as contemplated in the above, shall be provided per block for the removal thereof, where the term block shall in this context refer to any single, free standing building structure, regardless of size or purpose. Corresponding disposal certificates shall be issued by the facility at which the asbestos is disposed off, with said facility to, prior to the disposal of any asbestos material provide satisfactory proof that the facility is duly registered and fully compliant in terms of the act, to receive the asbestos material. Under no circumtances is the contractor nor any of his duly authorised representatives to sell and/or give away asbestos material to any member/s of the school community, the community in general or the public at large. Should this be found to be occuring, the contractor will be held responsible contractually and may further be prosecuted criminally. The cost for complying with the above, and all requirements of regulation as reflected above is to be priced for in the items for removal of asbestos material. No further claims in this regard will therefore be entertained
B65: TEMPORARY ROOF PROTECTION
B67: The Contractor will be held responsible for all damage, howsoever caused, to finishes inside rooms where the existing roof coverings have been removed and he must make good all damage at his own expense to the approval of the Employer
A69: 1 | B69: Supply and install temporary waterproofing and weatherproof protection to buildings in the form of uPVC underlay or tarpaulin where roofing and related items have been removed during construction whereby exposing buildings, including the relocation of the protection to various blocks within the works as area. The contractor to allow for maintenance of the waterproofing during periods of exposure to classrooms as well the reuse and reallocation to the blocks as per the contracts construction programme | C69: m2 | D69: 1124 | F69: =D69*E69 -> 0
B71: REMOVAL OF EXISTING WORK
B73: Breaking up and removing reinforced concrete including cutting off and removing reinforcement and cart away
A75: 2 | B75: 100mm Thick slabs | C75: m2 | D75: 48 | F75: =D75*E75 -> 0
B77: Taking out and removing doors, windows, etc., including thresholds, sills, etc. (building up openings and making good finishes elsewhere)
A79: 3 | B79: Timber single door and frame size 900 x 2100mm high | C79: No | D79: 27 | F79: =D79*E79 -> 0
B81: Taking down and removing roofs, floors, panelling, ceilings, partitions, etc
A83: 4 | B83: Chromadek roof sheets including all fixings | C83: m2 | D83: 1322 | F83: =D83*E83 -> 0
A85: 5 | B85: Double pitched timber roof truss with clear span between walls 7 000mm - 8 000mm long and approximately 1 600mm high | C85: No | D85: 40 | F85: =D85*E85 -> 0
A87: 6 | B87: Fascias boards fixed to ends of rafters including galvanised steel H-profile joint strips, etc, | C87: m | D87: 236 | F87: =D87*E87 -> 0
A89: 7 | B89: Barge boards fixed to ends of rafters including galvanised steel H-profile joint strips, etc, | C89: m | D89: 34 | F89: =D89*E89 -> 0
A91: 8 | B91: Gypsum plasterboard ceilings including cornices, timber brandering, etc | C91: m2 | D91: 576 | F91: =D91*E91 -> 0
A93: 9 | B93: 125 x 75mm uPVC Eaves gutters and rainwater pipes | C93: m | D93: 236 | F93: =D93*E93 -> 0
B95: Taking out and removing glass and mirrors
A97: 10 | B97: Glass from steel windows including cleaning out rebates and preparing for new glass | C97: m2 | D97: 98 | F97: =D97*E97 -> 0
B99: Taking up and removing vinyl floor coverings, carpeting, etc
A101: 11 | B101: Vinyl tile floor covering including preparing screed for new vinyl floor covering | C101: m2 | D101: 384 | F101: =D101*E101 -> 0
B103: Taking out and removing ironmongery
A105: 12 | B105: Make good existing glazed steel window approximately 900mm x 1200mm high including sanding down thoroughly, applying metal primer and two coats gloss enamel paint, replacing broken glazing, overhauling, adjusting and servicing existing ironmongery to leave complete unit in a perfect condition | C105: No | D105: 57 | F105: =D105*E105 -> 0
A107: 13 | B107: Remove existing chalkboards approximately 4800 x 1200mm high, including fixings, etc. and cart off site | C107: No | D107: 16 | F107: =D107*E107 -> 0
A109: 14 | B109: Remove existing pinning board approximately 1800 x 2800mm high, including fixings, etc. and cart off site | C109: No | D109: 8 | F109: =D109*E109 -> 0
B111: Hacking up/off and removing granolithic, screeds, plaster, etc from concrete or brickwork and preparing surfaces for new screeds, plaster, etc
A113: 15 | B113: 25mm Screed from floors | C113: m2 | D113: 90 | F113: =D113*E113 -> 0
B115: Taking out and removing piping, sanitary fittings, etc including disconnecting piping from fittings and making good floor and wall finishes (making good tiling and paintwork elsewhere)
A117: 16 | B117: Vitreous china wash hand basin | C117: No | D117: 8 | F117: =D117*E117 -> 0
A119: 17 | B119: Vitreous china WC pan with cistern | C119: No | D119: 12 | F119: =D119*E119 -> 0
B121: MAKING GOOD OF FINISHES ETC
A123: 18 | B123: Remove 100mm width of plaster on either side of crack, rake out crack: 6mm X 6mm deep, clean out all loose material and repair crack using Prostruct 506 Flexicoat polymer modified cementitious coating or similar approved, to Manufacturer’s specification | C123: m | D123: 61 | F123: =D123*E123 -> 0
B125: Making good existing Roof trusses
B127: Repairs to Bottom Chord
A129: 19 | B129: Make good existing timber roof truss in position, of tie beam span approximately 8000mm - 94000mm between walls and approximately 1600mm high at apex, including carefully cutting out and removing sections of damaged76 x 114mm bottom chord, replacing with new including bolting new section to old using approved galvanised mild steel bolts, washers, etc., replacing all bottom chord fixings, gang nails, etc. (whether damaged or not), sanding down and sealing entire truss to leave in a perfect condition, including reinstating in position as approved by the Engineer | C129: No | D129: 12 | F129: =D129*E129 -> 0
B131: Repairs to rafters
A133: 20 | B133: Make good existing timber roof truss in position, of tie beam span approximately 8000mm - 94000mm between walls and approximately 1600mm high at apex, including carefully cutting out and removing sections of damaged 76 x 114mm rafters, replacing with new including bolting new section to old using approved galvanised mild steel bolts, washers, etc., replacing all rafter fixings, gang nails, etc. (whether damaged or not), sanding down and sealing entire truss to leave in a perfect condition including reinstating in position as approved by the Engineer | C133: No | D133: 10 | F133: =D133*E133 -> 0
B135: Repairs to king post
A137: 21 | B137: Make good existing timber roof truss in position, of tie beam span approximately 8000mm - 94000mm between walls and approximately 1200mm high at apex, including carefully cutting out and removing sections of damaged 76 x 76mm king post, replacing with new including bolting new section to old using approved galvanised mild steel bolts, washers, etc., replacing all king post fixings, gang nails, etc. (whether damaged or not), sanding down and sealing entire truss to leave in a perfect condition, including reinstating in position as approved by the Engineer | C137: No | D137: 10 | F137: =D137*E137 -> 0
B139: Repairs to Bracings
A141: 22 | B141: Make good existing timber roof truss in position, of tie beam span approximately 8000mm - 94000mm between walls and approximately 1200mm high at apex, including carefully cutting out and removing sections of damaged 76 x 52mm bracings and intermediate posts and supports, replacing with new including bolting new section to old using approved galvanised mild steel bolts, washers, etc., replacing all king post fixings, gang nails, etc. (whether damaged or not), sanding down and sealing entire truss to leave in a perfect condition, including reinstating in position as approved by the Engineer | C141: No | D141: 14 | F141: =D141*E141 -> 0
B143: Repairs to Queen posts
A145: 23 | B145: Make good existing timber roof truss in position, of tie beam span approximately 8000mm - 94000mm between walls and approximately 1200mm high at apex, including carefully cutting out and removing sections of damaged 76 x 52mm queen posts and/or intermediate and diagonal bracing and/or supports, replacing with new including bolting new section to old using approved galvanised mild steel bolts, washers, etc., replacing all queen posts and intermediate and diagonal bracing and supports fixings, gang nails, etc. (whether damaged or not), sanding down and sealing entire truss to leave in a perfect condition, including reinstating in position as approved by the Engineer | C145: No | D145: 6 | F145: =D145*E145 -> 0
B147: Making good untinted granolithic
A149: 24 | B149: Floors in patches | C149: m2 | D149: 106 | F149: =D149*E149 -> 0
B151: Making good internal cement plaster
A153: 25 | B153: Walls in patches | C153: m2 | D153: 421 | F153: =D153*E153 -> 0
B155: Making good external cement plaster
A157: 26 | B157: Walls in patches | C157: m2 | D157: 288 | F157: =D157*E157 -> 0
A159: Bill No. 1 | B159: Carried to Summary | F159: =SUM(F6:F158) -> 0
B161: BILL NO. 2
B163: EARTHWORKS (PROVISIONAL)
B165: (CPAP WORK GROUP NO. 104 UNLESS OTHERWISE STATED)
B167: Key: Location Description A Block A (6 classroom) B Block B (6 classroom) C Block C (Hall) D Block D (Staff accommodation) E Block E (Girls ablution) F Block F (Boys ablution) G Block G (Ablution) H Block H (Ablution) I General J Ablution to be demolished K External works
B169: Tenderers are referred to the Model Preambles for All Trades as published by the Association of South African Quantity Surveyors (Tel. 011-315 4140) and the Architectural and Structural Works Information before pricing this Bill of Quantities
B171: SUPPLEMENTARY PREAMBLES
B173: Nature of ground
B175: The nature of the ground is assumed to be loose sandy material, therefore 'earth', but possibly interspersed with 'soft rock' or 'hard rock'
B177: Excavation for working space in rock
B179: Notwithstanding clause 11 of the Standard System of Measuring Building Work, excavation for working space in rock will be measured in cubic metres to the extent executed and given as 'extra over' bulk excavation or trench and hole excavation as the case may be
B181: Carting away of excavated material
B183: Descriptions of carting away of excavated material shall be deemed to include loading excavated material onto trucks directly from the excavations or, alternatively, from stock piles situated on the building site
B185: Filling
B187: Notwithstanding the reference to prescribed multiple handling in clause 1 of the Standard System of Measuring Building Work, prices for filling and backfilling shall include for all selection and any necessary multiple handling of material
B189: Testing
B191: Prices for filling are to include for all necessary density tests in accordance with SANS 10400
B193: EXCAVATION, FILLING, ETC OTHER THAN BULK
B195: Excavation in earth not exceeding 2m deep
A197: 1 | B197: Reduced levels under floors | C197: m3 | D197: 49 | F197: =D197*E197 -> 0
A199: 2 | B199: Trenches | C199: m3 | D199: 20 | F199: =D199*E199 -> 0
B201: Extra over trench and hole excavations in earth for excavation in
A203: 3 | B203: Soft rock | C203: m3 | D203: 5 | F203: =D203*E203 -> 0
A205: 4 | B205: Hard rock | C205: m3 | D205: 2 | F205: =D205*E205 -> 0
B207: Extra over all excavations for carting away
A209: 5 | B209: Surplus material from excavations and/or stock piles on site to a dumping site to be located by the contractor | C209: m3 | D209: 20 | F209: =D209*E209 -> 0
B211: Risk of collapse of excavations
A213: 6 | B213: Sides of trench and hole excavations not exceeding 1,5m deep | C213: m2 | D213: 64 | F213: =D213*E213 -> 0
B215: Keeping excavations free of water
A217: 7 | B217: Keeping excavations free of all water other than subterranean water | C217: Item | D217: 1 | F217: =D217*E217 -> 0
B219: Earth filling obtained from the excavations and/or prescribed stock piles on site compacted to 90% Mod AASHTO density
A221: 8 | B221: Backfilling to trenches, holes, etc | C221: m3 | D221: 14 | F221: =D221*E221 -> 0
B223: Earth filling supplied by the contractor compacted to 98% Mod AASHTO density
A225: 9 | B225: G5 material under floors | C225: m3 | D225: 44 | F225: =D225*E225 -> 0
B227: Coarse river sand filling supplied by the contractor
A229: 10 | B229: Under floors etc | C229: m3 | D229: 5 | F229: =D229*E229 -> 0
B231: Compaction of surfaces
A233: 11 | B233: Compaction of ground surface under floors etc including scarifying for a depth of 150mm, breaking down oversize material, adding suitable material where necessary and compacting to 95% Mod AASHTO density | C233: m2 | D233: 242 | F233: =D233*E233 -> 0
A235: 12 | B235: Compaction of trench surface including scarifying for a depth of 150mm, breaking down oversize material, adding suitable material where necessary and compacting to 90% Mod AASHTO density | C235: m2 | D235: 22 | F235: =D235*E235 -> 0
B237: Prescribed density tests on filling
A239: 13 | B239: "Modified AASHTO Density" test | C239: No | D239: 6 | F239: =D239*E239 -> 0
B241: SOIL POISONING
B243: Soil insecticide
A245: 14 | B245: Under floors etc including forming and poisoning shallow furrows against foundation walls etc, filling in furrows and ramming | C245: m2 | D245: 242 | F245: =D245*E245 -> 0
A247: 15 | B247: To bottoms and sides of trenches etc | C247: m2 | D247: 22 | F247: =D247*E247 -> 0
A249: Bill No. 2 | B249: Carried to Summary | F249: =SUM(F189:F248) -> 0
B251: BILL NO. 3
B253: CONCRETE, FORMWORK AND REINFORCEMENT
B255: (CPAP WORK GROUP NO. 110 UNLESS OTHERWISE STATED)
B257: Key: Location Description A Block A (6 classroom) B Block B (6 classroom) C Block C (Hall) D Block D (Staff accommodation) E Block E (Girls ablution) F Block F (Boys ablution) G Block G (Ablution) H Block H (Ablution) I General J Ablution to be demolished K External works
B259: Tenderers are referred to the Model Preambles for All Trades as published by the Association of South African Quantity Surveyors (Tel. 011-315 4140) and the Architectural and Structural Works Information before pricing this Bill of Quantities
B261: SUPPLEMENTARY PREAMBLES
B263: Cost of tests
B265: The costs of making, storing and testing of concrete test cubes as required under clause 7 Tests of SABS 1200 G shall include the cost of providing cube moulds necessary for the purpose, for testing costs and for submitting reports on the tests to the principal agent. The testing shall be undertaken by an independent firm or institution nominated by the contractor to the approval of the principal agent. (Test cubes are measured separately)
B267: Formwork
B269: Descriptions of formwork shall be deemed to include use and waste only (except where described as 'left in' or 'permanent'), for fitting together in the required forms, wedging, plumbing and fixing to true angles and surfaces as necessary to ensure easy release during stripping and for reconditioning as necessary before reuse.The vertical strutting shall be carried down to such construction as is sufficiently strong to afford the required support without damage and shall remain in position until the newly constructed work is able to support itself. Formwork to soffits of solid slabs etc. shall be deemed to be to slabs not exceeding 250mm thick unless otherwise described. Formwork to soffits of slabs, beams, etc. shall be deemed to be propped up exceeding 1,5m and not exceeding 3,5m high unless otherwise described.Formwork to sides of bases, pile caps, ground beams, etc. will only be measured where it is prescribed by the engineer for design reasons. Formwork necessitated by irregularity or collapse of excavated faces will not be measured and the cost thereof shall be deemed to be included in the allowance for taking the risk of collapse of the sides of the excavations, provision for which is made in Earthworks.
B271: UNREINFORCED CONCRETE CAST AGAINST EXCAVATED SURFACES
B273: 10MPa/19mm concrete
A275: 1 | B275: Surface blinding under footings and bases | C275: m3 | D275: 2 | F275: =D275*E275 -> 0
B277: REINFORCED CONCRETE CAST AGAINST EXCAVATED SURFACES
B279: 25MPa/19mm concrete
A281: 2 | B281: Surface beds and thickenings, etc cast in panels on waterproofing | C281: m3 | D281: 36 | F281: =D281*E281 -> 0
A283: 3 | B283: Strip footings | C283: m3 | D283: 7 | F283: =D283*E283 -> 0
B285: REINFORCED CONCRETE
B287: 25MPa/19mm concrete
A289: 4 | B289: Stairs including landings, beams and inverted beams | C289: m3 | D289: 4 | F289: =D289*E289 -> 0
B291: FORMWORK (CPAP Work Group No. 111)
B293: SMOOTH FORMWORK (DEGREE OF ACCURACY II)
B295: Smooth formwork to sides
A297: 5 | B297: Sloping and stepped outer edges of stairs not exceeding 300mm high extreme | C297: m | D297: 72 | F297: =D297*E297 -> 0
A299: 6 | B299: Edges, risers, ends and reveals not exceeding 300mm high or wide | C299: m | D299: 53 | F299: =D299*E299 -> 0
B301: TEST BLOCKS
A303: 7 | B303: Making and testing 150 x 150 x 150mm concrete strength test cube (Provisional) | C303: Sets | D303: 4 | F303: =D303*E303 -> 0
B305: CONCRETE SUNDRIES
B307: Finishing top surfaces of concrete smooth with a power float
A309: 8 | B309: Surface beds, slabs, etc to falls | C309: m2 | D309: 242 | F309: =D309*E309 -> 0
B311: MOVEMENT JOINTS ETC
B313: Two sheets of masonite with smooth surfaces as slip joints between horizontal concrete and brick surfaces including cement mortar bed
A315: 9 | B315: Not exceeding 300mm wide | C315: m | D315: 85 | F315: =D315*E315 -> 0
B317: Expansion joints with bitumen impregnated softboard between vertical concrete and brick surfaces
A319: 10 | B319: 12mm Joints not exceeding 300mm high | C319: m | D319: 32 | F319: =D319*E319 -> 0
B321: Saw cut joints
A323: 11 | B323: 5 x 30mm Saw cut joints in top of concrete | C323: m | D323: 40 | F323: =D323*E323 -> 0
B325: REINFORCEMENT (PROVISIONAL) (CPAP WORK Group No. 114)
B327: Mild steel and high tensile steel reinforcement
A329: 12 | B329: Various diameters to concrete slabs & beams, staircase, columns and foundations | C329: t | D329: 1.4 | F329: =D329*E329 -> 0
B331: Fabric reinforcement
A333: 13 | B333: Type 193 fabric reinforcement in concrete surface beds, slabs, etc | C333: m2 | D333: 242 | F333: =D333*E333 -> 0
A335: Bill No. 3 | B335: Carried to Summary | F335: =SUM(F270:F334) -> 0
B337: BILL NO. 4
B339: MASONRY
B341: (CPAP WORK GROUP NO. 116 UNLESS OTHERWISE STATED)
B343: Key: Location Description A Block A (6 classroom) B Block B (6 classroom) C Block C (Hall) D Block D (Staff accommodation) E Block E (Girls ablution) F Block F (Boys ablution) G Block G (Ablution) H Block H (Ablution) I General J Ablution to be demolished K External works
B345: Tenderers are referred to the Model Preambles for All Trades as published by the Association of South African Quantity Surveyors (Tel. 011-315 4140) and the Architectural, Structural and Electrical Information before pricing this Bill of Quantities
B347: SUPPLEMENTARY PREAMBLES
B349: Proprietary items or materials
B351: Proprietary items or materials where specified are to be of the brand specified or other approved by the Representative / Agent
B353: BRICKWORK
B355: Sizes in description:
B357: Where sizes in descriptions are given in brick units, 'one brick' shall represent the length and 'half brick' the width of a brick
B359: Hollow walls:
B361: Descriptions of hollow walls shall be deemed to include leaving every fifth perpend of the bottom course of the external skin open as a weep hole
B363: Bagged and sealed walls:
B365: Walls in two skins described as 'bagged and sealed' shall be deemed to include having the outer face of the inner skin bagged with 1:6 cement and sand mixture and sealed with two coats bitumen emulsion waterproofing coating
B367: Face bricks:
B369: Bricks shall be ordered timeously to obtain uniformity in size and colour
B371: Pointing:
B373: Descriptions of recessed pointing to fair face brickwork and face brickwork shall be deemed to include square recessed, hollow recessed, weathered pointing, etc.
B375: FOUNDATIONS (PROVISIONAL)
B377: Brickwork of NFX bricks (14 MPa nominal compressive strength) in class I mortar
A379: 1 | B379: One brick walls of two half brick skins bagged and sealed | C379: m2 | D379: 19 | F379: =D379*E379 -> 0
B381: SUPERSTRUCTURE
B383: Brickwork of NFP bricks in class II mortar
A385: 2 | B385: Half brick walls | C385: m2 | D385: 35 | F385: =D385*E385 -> 0
A387: 3 | B387: Hlaf brick walls in beamfill | C387: m2 | D387: 10 | F387: =D387*E387 -> 0
A389: 4 | B389: One brick walls of two half brick skins bagged and sealed | C389: m2 | D389: 58 | F389: =D389*E389 -> 0
B391: BRICKWORK SUNDRIES
B393: Brickwork reinforcement
A395: 5 | B395: 75mm Wide reinforcement built in horizontally | C395: m | D395: 156 | F395: =D395*E395 -> 0
A397: 6 | B397: 150mm Wide reinforcement built in horizontally | C397: m | D397: 256 | F397: =D397*E397 -> 0
B399: Prestressed fabricated lintels
... 625 more rows

Sheet Section 3 - Electrical Works
A1: SECTION NO. 3
A2: SCHEDULE NO 3: INSTALLATION B: 2) ELECTRICAL DISTRIBUTION SYSTEM - ELECTRICAL WORK
A3: MZIKAWUTHANDWA HIGH SCHOOL BLOCK A, B, & C
A5: ITEM | B5: DESCRIPTION | C5: UNIT | D5: QTY | E5: RATE | F5: TOTAL
A6: NO
A8: A | B8: LOW VOLTAGE CABLE
B9: Provide, install, test and commission the following 1000V
B10: PVC/SWA/PVC copper cables. Prices shall allow for the
B11: installation of cables in cable ducts, through sleeves,
B12: conduit or installation against vertical and horizontal levels.
A14: 1 | B14: 16mm² x 2 Core PVC Copper Cable
B15: Supply | C15: m | D15: 200 | F15: =SUM(D15*E15) -> 0
B16: Install | C16: m | D16: =D15 -> 200 | F16: =SUM(D16*E16) -> 0
A18: B | B18: TERMINATIONS
B19: Terminate and make off the following 1000V PVC/SWA/PVC
B20: cables in a cable gland according to the manufacturer's
B21: instructions. Provide the cores with lugs and bolt onto
B22: terminals. The cable gland and marking of the cable shall
B23: also be allowed for.
A25: 1 | B25: 16mm² x 2 Core PVC Copper Cable
B26: Supply | C26: ea | D26: 4 | F26: =SUM(D26*E26) -> 0
B27: Install | C27: ea | D27: =D26 -> 4 | F27: =SUM(D27*E27) -> 0
A29: C | B29: CABLE SLEEVES
B30: Provide and install the following UPVC sleeves
B31: in the ground complete with mild-steel draw wire.
A33: 1 | B33: 50mm Sleeves
B34: Supply | C34: m | D34: 150 | F34: =SUM(D34*E34) -> 0
B35: Install | C35: m | D35: =D34 -> 150 | F35: =SUM(D35*E35) -> 0
A37: 2 | B37: 50mm Bends
B38: Supply | C38: ea | D38: 6 | F38: =SUM(D38*E38) -> 0
B39: Install | C39: ea | D39: =D38 -> 6 | F39: =SUM(D39*E39) -> 0
A41: D | B41: DISTRIBUTION BOARDS.
B42: New distribution boards, kiosks, etc., supplied and installed
B43: in position, complete with all busbar work, switchgear,
B44: terminals, wiring, lacing, conduit terminations, meters, and
B45: all other items, including full labelling and legend card, all in
B46: accordance with the Schedules of Distribution Boards:
A48: 1 | B48: Distribution board- Main Block A
B49: Supply | C49: ea | D49: 1 | F49: =SUM(D49*E49) -> 0
B50: Install | C50: ea | D50: 1 | F50: 0
A52: 2 | B52: Distribution board - Block B
B53: Supply | C53: ea | D53: 1 | F53: =SUM(D53*E53) -> 0
B54: Install | C54: ea | D54: 1 | F54: 0
A56: 3 | B56: Distribution board - Block C
B57: Supply | C57: ea | D57: 1 | F57: =SUM(D57*E57) -> 0
B58: Install | C58: ea | D58: 1 | F58: 0
A59: Carried forward to the next page | F59: =SUM(F14:F58) -> 0
A61: ITEM | B61: DESCRIPTION | C61: UNIT | D61: QTY | E61: RATE | F61: AMOUNT
A62: NO
A64: Brought forward from the previous page | F64: =F59 -> 0
A67: E | B67: EXCAVATIONS
B68: All prices below shall include the excavation
B69: of trenches and holes, separating of stones,
B70: their original finish.
A71: 1 | B71: Excavate in soft ground | C71: m³ | D71: 20 | F71: =SUM(D71*E71) -> 0
A73: 2 | B73: Excavate in soft rock | C73: m³ | D73: 15 | F73: =SUM(D73*E73) -> 0
A75: 3 | B75: Excavate in hard rock | C75: m³ | D75: 150 | F75: =SUM(D75*E75) -> 0
A77: 4 | B77: Suppy cable marker tape & Install 400mm below finished
B78: ground level. | C78: m | D78: 50 | F78: =SUM(D78*E78) -> 0
A80: F | B80: REMOVAL OF EXISTING ELECTRICAL INSTALLATION
B81: Allow a lump sum for installation of lightning Protection in
B82: Electrical installation | C82: Sum | D82: 1 | F82: =SUM(D82*E82) -> 0
A84: G | B84: LIGHTING PROTECTION INSTALLATION
B85: Allow a lump sum for installation of lightning Protection in
B86: Block A | C86: sum | D86: 1 | F86: =SUM(D86*E86) -> 0
B87: Block B
B88: Block C
A91: H | B91: Testing and Commissioning Electrical Installation,
B92: Cables and Distribution Boards and issuing COC as | C92: Sum | D92: 1 | F92: =SUM(D92*E92) -> 0
B93: per SANS 10142.
A95: I | B95: 5% Allowance for builders work | C95: Sum | D95: 1 | F95: =SUM(D95*E95) -> 0
A98: Carried forward to the summary page | F98: =SUM(F63:F96) -> 0
A100: SCHEDULE NO 4: INSTALLATION C: 2) ELECTRICAL INSTALLATION IN BUILDINGS - WORK
A101: MZIKAWUTHANDWA HIGH SCHOOL BLOCK A, B, & C
A103: ITEM | B103: DESCRIPTION | C103: UNIT | D103: QTY | E103: RATE | F103: AMOUNT
A104: NO
A105: A | B105: CONDUIT
A106: 1 | B106: 20mm Diameter PVC Conduit
B107: Supply | C107: m | D107: 900 | F107: =SUM(D107*E107) -> 0
B108: Install | C108: m | D108: =D107 -> 900 | F108: 0
A110: 2 | B110: 25mm Diameter PVC conduit
B111: Supply | C111: m | D111: 650 | F111: =SUM(D111*E111) -> 0
B112: Install | C112: m | D112: =D111 -> 650 | F112: 0
A114: 2 | B114: 25mm Diameter gavinised conduit
B115: Supply | C115: m | D115: 150 | F115: =SUM(D115*E115) -> 0
B116: Install | C116: m | D116: =D115 -> 150 | F116: 0
A118: B | B118: CIRCUIT WIRING
B119: The supply and installation in conduit of
B120: stranded copper PVCinsulated conductors
B121: in groups.
A123: 1 | B123: 2 x 1.5mm² and 2.5mm² earth wire
B124: Supply | C124: m | D124: =SUM(D107*3) -> 2700 | F124: =SUM(D124*E124) -> 0
B125: Install | C125: m | D125: =D124 -> 2700 | F125: 0
A127: 2 | B127: 2 x 2.5mm² and 2.5mm² earth wire
B128: Supply | C128: m | D128: =SUM(D111*3) -> 1950 | F128: =SUM(D128*E128) -> 0
B129: Install | C129: m | D129: =D128 -> 1950 | F129: 0
A131: 3 | B131: Draw wire
B132: Supply | C132: m | D132: =SUM(D108:D111) -> 1550 | F132: =SUM(D132*E132) -> 0
B133: Install | C133: m | D133: =D132 -> 1550 | F133: 0
A135: C | B135: CONDUIT BOXES
A137: 1 | B137: 50mm round PVC box surface
B138: Supply | C138: ea | D138: 80 | F138: =SUM(D138*E138) -> 0
B139: Install | C139: ea | D139: =D138 -> 80 | F139: 0
A141: 2 | B141: 100 x 50 x 50mm galvanised box surface
B142: Supply | C142: ea | D142: 16 | F142: =SUM(D142*E142) -> 0
B143: Install | C143: ea | D143: =D142 -> 16 | F143: 0
A145: 3 | B145: 100mm x 100mm x 50mm galvanised box
B146: box cover plate
B147: Supply | C147: ea | D147: 22 | F147: =SUM(D147*E147) -> 0
B148: Install | C148: ea | D148: =D147 -> 22 | F148: 0
A157: Carried forward to the next page | F157: =SUM(F105:F155) -> 0
A160: ITEM | B160: DESCRIPTION | C160: UNIT | D160: QTY | E160: RATE | F160: AMOUNT
A161: NO
A163: Brought forward from the previous page | F163: =F157 -> 0
A165: D | B165: LIGHT FITTINGS
B166: Luminaires and accessories supplied complete
B167: with lamps. All fittings to carry the SABS mark.
A169: 1 | B169: Type A luminaires
B170: Supply | C170: ea | D170: 64 | F170: =SUM(D170*E170) -> 0
B171: Install | C171: ea | D171: =D170 -> 64 | F171: 0
A173: 2 | B173: Type B luminaires
B174: Supply | C174: ea | D174: 28 | F174: =SUM(D174*E174) -> 0
B175: Install | C175: ea | D175: =D174 -> 28 | F175: 0
A177: E | B177: SMALL POWER
B178: Supply and installation complete with all
B179: covers and fixings.
A181: 1 | B181: Photo electric-cell with 65mm deep conduit box
B182: Supply | C182: ea | D182: 3 | F182: =SUM(D182*E182) -> 0
B183: Install | C183: ea | D183: =D182 -> 3 | F183: 0
A185: 2 | B185: Supply & Install 20A Double Pole , 220V Contactor
B186: Supply | C186: ea | D186: =D182 -> 3 | F186: =SUM(D186*E186) -> 0
B187: Install | C187: ea | D187: =D186 -> 3 | F187: 0
A189: 3 | B189: 16A Double Socket Outlet in box
B190: Supply | C190: ea | D190: =D147 -> 22 | F190: =SUM(D190*E190) -> 0
B191: Install | C191: ea | D191: =D190 -> 22 | F191: 0
A193: 4 | B193: 16A single lever one way light switch
B194: Supply | C194: ea | D194: =D142 -> 16 | F194: =SUM(D194*E194) -> 0
B195: Install | C195: ea | D195: =D194 -> 16 | F195: 0
A197: 5 | B197: Siren complete with all necessary equipment for wiring
B198: Supply | C198: ea | D198: 1 | F198: =SUM(D198*E198) -> 0
B199: Install | C199: ea | D199: =D198 -> 1 | F199: 0
A202: 6 | B202: Provide the Amount of R80,000.00 (Eighty Thousand Rand) for the installation of electrical works at the parkhomes facilities as per electrical engineers instructions | C202: sum | D202: 1 | E202: R 80,000.00 | F202: =SUM(D202*E202) -> R 80,000.00
A204: G | B204: Earthing and bonding of complete installation | C204: sum | D204: 1 | F204: =SUM(D204*E204) -> 0
A206: H | B206: Test and Certify as per SANS 10142 | C206: sum | D206: 1 | F206: =SUM(D206*E206) -> 0
A208: I | B208: Earth Electrode Installation | C208: sum | D208: 1 | F208: =SUM(D208*E208) -> 0
A210: Carried forward to the summary page | F210: =SUM(F162:F208) -> R 80,000.00
B213: SUMMARY OF ELECTRICAL INSTALLATION
A216: ITEM | C216: DESCRIPTION | F216: AMOUNT
A217: NO
A221: 1 | B221: SCHEDULE NO 3: INSTALLATION B: | F221: =F98 -> 0
B222: ELECTRICAL DISTRIBUTION SYSTEM
A227: 2 | B227: SCHEDULE NO 4: INSTALLATION C: | F227: =F210 -> R 80,000.00
B228: ELECTRICAL INSTALLATION IN BUILDINGS
B237: CARRIED FORWARD TO FINAL SUMMARY PAGE FOR BILLS OF QUANTITIES FOR MUZIKAWUTHANDWA HIGH SCHOOL | F237: =F221+F227 -> R 80,000.00

Sheet Summary
A2: ITEM NO. | B2: FINAL SUMMARY | D2: AMOUNT
B4: Section No. 1
A6: 1 | B6: Preliminaries | D6: ='Section 1 - Preliminaries'!F14 -> 0
B8: Section No. 2
A10: 1 | B10: Alterations (Provisional) | D10: ='Section 2 - Builders Work'!F1615 -> 0
A12: 2 | B12: Earthworks | D12: ='Section 2 - Builders Work'!F1617 -> 0
A14: 3 | B14: Concrete, Formwork & Reinforcement | D14: ='Section 2 - Builders Work'!F1619 -> 0
A16: 4 | B16: Masonry | D16: ='Section 2 - Builders Work'!F1621 -> 0
A18: 5 | B18: Waterproofing | D18: ='Section 2 - Builders Work'!F1623 -> 0
A20: 6 | B20: Roof Coverings | D20: ='Section 2 - Builders Work'!F1625 -> 0
A22: 7 | B22: Carpentry and Joinery | D22: ='Section 2 - Builders Work'!F1627 -> 0
A24: 8 | B24: Ceilings, Partitions & Access Flooring | D24: ='Section 2 - Builders Work'!F1629 -> 0
A26: 9 | B26: Floor Coverings, Wall Linings, Etc. | D26: ='Section 2 - Builders Work'!F1631 -> 0
A28: 10 | B28: Ironmongery | D28: ='Section 2 - Builders Work'!F1633 -> 0
A30: 11 | B30: Metalwork | D30: ='Section 2 - Builders Work'!F1635 -> R130,000.00
A32: 12 | B32: Plastering | D32: ='Section 2 - Builders Work'!F1637 -> 0
A34: 13 | B34: Plumbing & Drainage (Provisional) | D34: ='Section 2 - Builders Work'!F1639 -> 0
A36: 14 | B36: Glazing | D36: ='Section 2 - Builders Work'!F1641 -> 0
A38: 15 | B38: Paintwork | D38: ='Section 2 - Builders Work'!F1643 -> 0
A40: 16 | B40: External Works (Provisional) | D40: ='Section 2 - Builders Work'!F1645 -> 0
A42: 17 | B42: Provisional Sums | D42: ='Section 2 - Builders Work'!F1647 -> R110,000.00
B44: Section No. 3
A46: 1 | B46: Electrical Works (Provisional) | D46: ='Section 3 - Electrical Works'!F237 -> R80,000.00
C48: Sub-Total | D48: =SUM(D5:D47) -> R320,000.00
C50: Vat @ 15% | D50: =D48*0.15 -> R48,000.00
B52: Carried to Form of Tender | C52: TOTAL | D52: =D48+D50 -> R368,000.00
